[Event "Polish Youth G16 Championship 2023"]
[Site "Jastrzebia Gora"]
[Date "2023.03.13"]
[Round "2.3"]
[White "Ziobrowska, Maja"]
[Black "Kulczycka, Zofia"]
[Result "1-0"]
[ECO "C02"]
[WhiteElo "1758"]
[BlackElo "1547"]
[Annotator "NA RC COMBH"]
[PlyCount "75"]
[EventDate "2023.03.11"]
[EventType "swiss"]
[EventCountry "POL"]
[SourceTitle "playchess.com"]
[Source "ChessBase"]
[SourceQuality "1"]
[TimeControl "40/5400+30:1800+30"]

1. e4 {[%emt 0:00:04]} e6 {[%emt 0:00:09]} 2. d4 {[%emt 0:00:37]} d5 {[%emt 0:00:08]} 3. e5 {[%emt 0:00:33]} c5 {[%emt 0:01:29]} 4. c3 {[%emt 0:00:05]} Nc6 {[%emt 0:01:14]} 5. Nf3 {[%emt 0:00:04]} Qb6 {[%emt 0:03:37]} 6. Bd3 {[%emt 0:00:16]} Bd7 {[%emt 0:00:54]} 7. O-O {[%emt 0:00:59]} O-O-O {[%emt 0:19:33]} 8. dxc5 {[%emt 0:01:45]} Bxc5 {[%emt 0:01:14]} 9. b4 {[%emt 0:00:15]} Be7 {[%emt 0:01:38]} 10. a4 {[%emt 0:01:08]} Qc7 {[%emt 0:04:16]} 11. Qe2 {[%emt 0:09:52]} f6 {[%emt 0:02:46]} 12. Na3 {[%emt 0:10:25]} fxe5 {[%emt 0:07:13]} 13. Bb5 {[%emt 0:06:59]} Bd6 {[%emt 0:04:54]} 14. h3 {[%emt 0:05:59]} Nf6 {[%emt 0:03:40]} 15. Bxc6 {[%emt 0:01:53]} bxc6 {[%emt 0:06:43]} 16. b5 {[%emt 0:01:09]} c5 {[%emt 0:00:25]} 17. b6 {[%emt 0:01:26]} axb6 {[%emt 0:02:32]} 18. a5 {[%emt 0:01:08]} Bc6 {[%emt 0:04:21]} 19. axb6 {[%emt 0:03:05]} Qxb6 {[%emt 0:02:24]} 20. Nxe5 {[%emt 0:05:23]} Bxe5 {[%emt 0:04:21]} 21. Qxe5 {[%emt 0:00:03]} Rhe8 {[%emt 0:02:25]} 22. Bg5 {[%emt 0:03:54]} Qc7 {[%emt 0:06:43]} 23. Qe2 {[%emt 0:01:38]} Kd7 {[%emt 0:01:42]} 24. Nb5 {[%emt 0:10:14]} Bxb5 {[%emt 0:01:11]} 25. Qxb5+ {[%emt 0:00:06]} Ke7 {[%emt 0:00:41]} 26. Ra6 {[%emt 0:01:09]} Rb8 {[%emt 0:03:07]} 27. Qd3 {[%emt 0:04:57]} Kf8 {[%emt 0:01:49]} 28. Qf3 {[%emt 0:02:46]} Qf7 {[%emt 0:01:24]} 29. Bxf6 {[%emt 0:04:36]} Qxf6 {[%emt 0:00:27]} 30. Qe3 {[%emt 0:00:22]} c4 {[%emt 0:02:48]} 31. Rd1 {[%emt 0:03:07]} Rb3 {[%emt 0:01:10]} 32. Rd4 {[%emt 0:00:47]} Kg8 {[%emt 0:01:06]} 33. Ra7 {[%emt 0:06:04]} Rd8 {[%emt 0:02:25]} 34. Ra6 {[%emt 0:06:24]} Re8 {[%emt 0:01:54]} 35. g4 {[%emt 0:03:19]} Qf7 {[%emt 0:01:04]} 36. Rf4 {[%emt 0:00:36]} Qc7 {[%emt 0:02:10]} 37. Rxe6 {[%emt 0:00:53]} Rd8 {[%emt 0:02:12]} 38. Re8+ {[%emt 0:00:09]} 1-0

[Event "Polish Youth G16 Championship 2023"]
[Site "Jastrzebia Gora"]
[Date "2023.03.13"]
[Round "2.4"]
[White "Kicinska, Magdalena"]
[Black "Kawa, Anna"]
[Result "0-1"]
[ECO "E67"]
[WhiteElo "1573"]
[BlackElo "1743"]
[Annotator "NA RC COMBH"]
[PlyCount "92"]
[EventDate "2023.03.11"]
[EventType "swiss"]
[EventCountry "POL"]
[SourceTitle "playchess.com"]
[Source "ChessBase"]
[SourceQuality "1"]
[TimeControl "40/5400+30:1800+30"]

1. d4 {[%emt 0:00:02]} Nf6 {[%emt 0:00:22]} 2. Nf3 {[%emt 0:00:08]} g6 {[%emt 0:00:43]} 3. c4 {[%emt 0:00:13]} Bg7 {[%emt 0:00:33]} 4. g3 {[%emt 0:00:31]} d6 {[%emt 0:01:28]} 5. Bg2 {[%emt 0:00:32]} O-O {[%emt 0:00:55]} 6. O-O {[%emt 0:00:32]} Nbd7 {[%emt 0:05:51]} 7. Nc3 {[%emt 0:03:53]} e5 {[%emt 0:05:55]} 8. d5 {[%emt 0:03:08]} Ne8 {[%emt 0:08:41]} 9. e4 {[%emt 0:05:09]} f5 {[%emt 0:01:42]} 10. b4 {[%emt 0:05:27]} a5 {[%emt 0:05:19]} 11. Ng5 {[%emt 0:18:51]} Nb6 {[%emt 0:13:33]} 12. Qb3 {[%emt 0:07:55]} a4 {[%emt 0:05:45]} 13. Qc2 {[%emt 0:04:16]} f4 {[%emt 0:08:51]} 14. c5 {[%emt 0:09:47]} dxc5 {[%emt 0:07:02]} 15. bxc5 {[%emt 0:00:28]} Nxd5 {[%emt 0:02:12]} 16. Nxh7 {[%emt 0:15:55]} Kxh7 {[%emt 0:08:30]} 17. Nxd5 {[%emt 0:01:14]} Be6 {[%emt 0:01:33]} 18. Rd1 {[%emt 0:01:32]} Bxd5 {[%emt 0:06:05]} 19. Rxd5 {[%emt 0:00:08]} Qe7 {[%emt 0:00:12]} 20. Qd3 {[%emt 0:02:21]} Nf6 {[%emt 0:00:16]} 21. c6 {[%emt 0:00:46]} bxc6 {[%emt 0:00:26]} 22. Ba3 {[%emt 0:00:15]} Qe8 {[%emt 0:03:24]} 23. Rc5 {[%emt 0:01:31]} Rf7 {[%emt 0:01:12]} 24. Rac1 {[%emt 0:04:03]} Rd7 {[%emt 0:03:00]} 25. Qc3 {[%emt 0:01:14]} Rad8 {[%emt 0:03:24]} 26. Qxe5 {[%emt 0:06:54]} Rd1+ {[%emt 0:01:43]} 27. Rxd1 {[%emt 0:00:04]} Rxd1+ {[%emt 0:00:03]} 28. Bf1 {[%emt 0:00:05]} Qxe5 {[%emt 0:01:53]} 29. Rxe5 {[%emt 0:00:05]} Ng4 {[%emt 0:00:41]} 30. Re7 {[%emt 0:00:52]} Kh6 {[%emt 0:02:38]} 31. h3 {[%emt 0:00:39]} Nh2 {[%emt 0:01:22]} 32. Kxh2 {[%emt 0:00:15]} Rxf1 {[%emt 0:00:02]} 33. Kg2 {[%emt 0:00:29]} Ra1 {[%emt 0:00:23]} 34. Rxc7 {[%emt 0:02:29]} Rxa2 {[%emt 0:00:45]} 35. Bc1 {[%emt 0:01:28]} Bd4 {[%emt 0:01:00]} 36. Bxf4+ {[%emt 0:00:27]} g5 {[%emt 0:00:04]} 37. Rxc6+ {[%emt 0:00:51]} Kh7 {[%emt 0:00:12]} 38. Rc7+ {[%emt 0:02:26]} Kg6 {[%emt 0:00:26]} 39. Rc6+ {[%emt 0:00:07]} Kf7 {[%emt 0:00:15]} 40. Bxg5 {[%emt 0:00:00]} Rxf2+ {[%emt 0:00:00]} 41. Kh1 {[%emt 0:00:49]} a3 {[%emt 0:05:50]} 42. Ra6 {[%emt 0:11:41]} a2 {[%emt 0:00:33]} 43. h4 {[%emt 0:02:23]} a1=Q+ {[%emt 0:01:10]} 44. Rxa1 {[%emt 0:00:08]} Bxa1 {[%emt 0:00:02]} 45. Kg1 {[%emt 0:00:53]} Bd4 {[%emt 0:00:56]} 46. e5 {[%emt 0:00:13]} Ke6 {[%emt 0:00:51]} 0-1

[Event "Polish Youth G16 Championship 2023"]
[Site "Jastrzebia Gora"]
[Date "2023.03.13"]
[Round "2.6"]
[White "Giemza, Julia"]
[Black "Bar, Klaudia"]
[Result "0-1"]
[ECO "B30"]
[WhiteElo "1536"]
[BlackElo "1731"]
[Annotator "NA RC COMBH"]
[PlyCount "94"]
[EventDate "2023.03.11"]
[EventType "swiss"]
[EventCountry "POL"]
[SourceTitle "playchess.com"]
[Source "ChessBase"]
[SourceQuality "1"]
[TimeControl "40/5400+30:1800+30"]

1. e4 {[%emt 0:00:02]} c5 {[%emt 0:00:05]} 2. Nf3 {[%emt 0:00:05]} Nc6 {[%emt 0:00:05]} 3. Bb5 {[%emt 0:00:21]} e5 {[%emt 0:00:15]} 4. Nc3 {[%emt 0:03:15]} a6 {[%emt 0:03:01]} 5. Bxc6 {[%emt 0:01:33]} dxc6 {[%emt 0:00:17]} 6. h3 {[%emt 0:05:54]} Bd6 {[%emt 0:05:13]} 7. d3 {[%emt 0:02:32]} Ne7 {[%emt 0:01:20]} 8. Be3 {[%emt 0:01:44]} Ng6 {[%emt 0:06:05]} 9. Qd2 {[%emt 0:05:04]} O-O {[%emt 0:10:05]} 10. O-O-O {[%emt 0:05:12]} b5 {[%emt 0:00:59]} 11. Ne2 {[%emt 0:03:55]} b4 {[%emt 0:04:27]} 12. Kb1 {[%emt 0:11:54]} a5 {[%emt 0:01:20]} 13. g3 {[%emt 0:02:41]} a4 {[%emt 0:01:09]} 14. c4 {[%emt 0:05:39]} bxc3 {[%emt 0:18:56]} 15. Qxc3 {[%emt 0:00:14]} Qb6 {[%emt 0:01:40]} 16. Nd2 {[%emt 0:02:09]} Be7 {[%emt 0:14:51]} 17. f4 {[%emt 0:07:20]} Rd8 {[%emt 0:16:52]} 18. Nc4 {[%emt 0:03:58]} Qb5 {[%emt 0:00:40]} 19. f5 {[%emt 0:03:54]} Nf8 {[%emt 0:00:09]} 20. Qxe5 {[%emt 0:01:49]} Rd7 {[%emt 0:08:06]} 21. g4 {[%emt 0:04:49]} Rb8 {[%emt 0:02:13]} 22. Qc3 {[%emt 0:03:55]} Ba6 {[%emt 0:01:26]} 23. Bf4 {[%emt 0:01:23]} Rbd8 {[%emt 0:00:19]} 24. g5 {[%emt 0:03:30]} Qb4 {[%emt 0:01:56]} 25. Ne5 {[%emt 0:09:20]} Qxc3 {[%emt 0:00:21]} 26. Nxc3 {[%emt 0:00:06]} Bxd3+ {[%emt 0:00:16]} 27. Kc1 {[%emt 0:00:35]} Rd6 {[%emt 0:00:47]} 28. Nxd3 {[%emt 0:06:21]} Rxd3 {[%emt 0:00:05]} 29. Nxa4 {[%emt 0:00:35]} Rf3 {[%emt 0:01:10]} 30. Rxd8 {[%emt 0:01:28]} Bxd8 {[%emt 0:00:01]} 31. Bd2 {[%emt 0:00:22]} Nd7 {[%emt 0:00:25]} 32. h4 {[%emt 0:01:08]} c4 {[%emt 0:00:19]} 33. Kd1 {[%emt 0:00:55]} Ne5 {[%emt 0:00:45]} 34. Ke2 {[%emt 0:00:46]} Rd3 {[%emt 0:00:55]} 35. Rd1 {[%emt 0:01:20]} Be7 {[%emt 0:00:48]} 36. Nb6 {[%emt 0:00:42]} Rd4 {[%emt 0:00:27]} 37. Bf4 {[%emt 0:00:53]} Rxe4+ {[%emt 0:00:07]} 38. Be3 {[%emt 0:00:27]} h6 {[%emt 0:00:54]} 39. gxh6 {[%emt 0:00:34]} Bc5 {[%emt 0:00:32]} 40. Nxc4 {[%emt 0:00:00]} Nxc4 {[%emt 0:00:00]} 41. Kd3 {[%emt 0:01:04]} Rxh4 {[%emt 0:04:29]} 42. Rg1 {[%emt 0:00:55]} Bxe3 {[%emt 0:04:46]} 43. Rxg7+ {[%emt 0:00:14]} Kf8 {[%emt 0:00:12]} 44. b3 {[%emt 0:00:09]} Bxh6 {[%emt 0:00:23]} 45. Rg2 {[%emt 0:00:14]} Ne5+ {[%emt 0:00:26]} 46. Ke2 {[%emt 0:00:23]} Re4+ {[%emt 0:00:20]} 47. Kd1 {[%emt 0:00:22]} Ke7 {[%emt 0:01:39]} 0-1

[Event "Polish Youth G16 Championship 2023"]
[Site "Jastrzebia Gora"]
[Date "2023.03.13"]
[Round "2.7"]
[White "Tokarz, Izabela"]
[Black "Pietryk, Joanna"]
[Result "1-0"]
[ECO "D27"]
[WhiteElo "1725"]
[BlackElo "1488"]
[Annotator "NA RC COMBH"]
[PlyCount "81"]
[EventDate "2023.03.11"]
[EventType "swiss"]
[EventCountry "POL"]
[SourceTitle "playchess.com"]
[Source "ChessBase"]
[SourceQuality "1"]
[TimeControl "40/5400+30:1800+30"]

1. d4 d5 2. c4 dxc4 3. Nf3 Nf6 4. e3 e6 5. Bxc4 c5 6. O-O a6 7. a4 Nc6 8. Nc3 cxd4 9. exd4 Be7 10. Bg5 O-O 11. Qd2 Nb4 12. Rad1 Nbd5 13. Ba2 Nxc3 14. bxc3 Qa5 15. Qc2 Bd7 16. Bb3 Rac8 17. Bd2 Bc6 18. Ne5 Be4 19. Qa2 Qb6 20. Rfe1 Rfd8 21. a5 Qd6 22. Nc4 Qc6 23. Nb6 Rc7 24. Ba4 Qd6 25. Ra1 Bd5 26. Qb1 Ng4 27. g3 e5 28. Nxd5 Qxd5 29. h3 Nxf2 30. Kxf2 exd4 31. Qe4 Qxa5 32. Bf4 Bc5 33. Bxc7 dxc3+ 34. Kg2 Qxc7 35. Rad1 Rd2+ 36. Rxd2 cxd2 37. Rd1 b5 38. Bc2 g6 39. Rxd2 b4 40. Bb3 Bd6 41. Rf2 1-0

[Event "Polish Youth G16 Championship 2023"]
[Site "Jastrzebia Gora"]
[Date "2023.03.13"]
[Round "2.8"]
[White "Romejko, Jagoda"]
[Black "Seemann, Pola"]
[Result "0-1"]
[ECO "D31"]
[WhiteElo "1483"]
[BlackElo "1714"]
[Annotator "NA RC COMBH"]
[PlyCount "110"]
[EventDate "2023.03.11"]
[EventType "swiss"]
[EventCountry "POL"]
[SourceTitle "playchess.com"]
[Source "ChessBase"]
[SourceQuality "1"]
[TimeControl "40/5400+30:1800+30"]

1. d4 {[%emt 0:00:03]} d5 {[%emt 0:00:04]} 2. c4 {[%emt 0:00:04]} e6 {[%emt 0:00:04]} 3. Nc3 {[%emt 0:00:05]} Be7 {[%emt 0:00:07]} 4. Nf3 {[%emt 0:00:12]} Nf6 {[%emt 0:00:06]} 5. cxd5 {[%emt 0:00:15]} exd5 {[%emt 0:00:09]} 6. Bg5 {[%emt 0:00:31]} O-O {[%emt 0:02:09]} 7. e3 {[%emt 0:00:33]} h6 {[%emt 0:01:51]} 8. Bf4 {[%emt 0:00:58]} c6 {[%emt 0:05:46]} 9. Qc2 {[%emt 0:01:48]} Nbd7 {[%emt 0:02:31]} 10. Bd3 {[%emt 0:03:45]} Re8 {[%emt 0:03:33]} 11. O-O {[%emt 0:06:34]} Nh5 12. Be5 Nf8 {[%emt 0:16:57]} 13. h3 {[%emt 0:05:30]} Bd6 {[%emt 0:10:11]} 14. Rab1 {[%emt 0:10:30]} Bxe5 {[%emt 0:05:25]} 15. Nxe5 {[%emt 0:01:29]} c5 {[%emt 0:04:41]} 16. Rfe1 {[%emt 0:13:00]} g6 {[%emt 0:04:11]} 17. Rbc1 {[%emt 0:12:33]} c4 {[%emt 0:03:50]} 18. Be2 {[%emt 0:03:25]} Nf6 {[%emt 0:04:32]} 19. b3 {[%emt 0:06:44]} Bf5 {[%emt 0:03:34]} 20. Qb2 {[%emt 0:01:10]} Qb6 {[%emt 0:06:14]} 21. Qa3 {[%emt 0:07:05]} cxb3 {[%emt 0:01:39]} 22. Qxb3 {[%emt 0:03:23]} Qxb3 {[%emt 0:00:08]} 23. axb3 {[%emt 0:00:03]} N8d7 24. Nxd7 {[%emt 0:01:00]} Bxd7 {[%emt 0:01:27]} 25. Nb5 {[%emt 0:01:44]} Bxb5 {[%emt 0:03:44]} 26. Bxb5 {[%emt 0:00:07]} Rec8 {[%emt 0:00:10]} 27. Rc5 {[%emt 0:03:22]} Rxc5 {[%emt 0:03:21]} 28. dxc5 {[%emt 0:00:06]} Rc8 {[%emt 0:00:07]} 29. Rc1 {[%emt 0:02:00]} a6 {[%emt 0:00:53]} 30. Bd3 {[%emt 0:01:48]} Kf8 {[%emt 0:04:27]} 31. Rc2 {[%emt 0:01:24]} a5 {[%emt 0:01:49]} 32. Kf1 {[%emt 0:00:51]} Nd7 {[%emt 0:00:23]} 33. e4 dxe4 34. Bxe4 {[%emt 0:08:35]} Rxc5 {[%emt 0:03:58]} 35. Rxc5 {[%emt 0:02:45]} Nxc5 {[%emt 0:00:06]} 36. Bd5 {[%emt 0:00:11]} Ke7 {[%emt 0:00:25]} 37. Ke2 {[%emt 0:00:15]} f6 {[%emt 0:01:26]} 38. Ke3 {[%emt 0:00:26]} Kd6 {[%emt 0:00:05]} 39. Kd4 {[%emt 0:00:59]} b6 {[%emt 0:00:21]} 40. Bc4 {[%emt 0:00:00]} Ne6+ {[%emt 0:00:00]} 41. Ke4 {[%emt 0:02:41]} f5+ {[%emt 0:02:41]} 42. Ke3 {[%emt 0:00:50]} Ke5 {[%emt 0:00:40]} 43. g3 {[%emt 0:03:20]} f4+ {[%emt 0:00:25]} 44. Kf3 {[%emt 0:05:05]} fxg3 {[%emt 0:02:26]} 45. Kxg3 {[%emt 0:00:55]} Nd4 {[%emt 0:00:26]} 46. Kg4 {[%emt 0:01:25]} b5 {[%emt 0:01:29]} 47. f4+ {[%emt 0:00:34]} Kf6 {[%emt 0:00:46]} 48. Bd5 {[%emt 0:00:57]} h5+ {[%emt 0:00:25]} 49. Kg3 {[%emt 0:00:34]} Kf5 {[%emt 0:00:06]} 50. Bf7 {[%emt 0:01:08]} Ne2+ {[%emt 0:00:08]} 51. Kf3 {[%emt 0:01:11]} Nxf4 {[%emt 0:00:06]} 52. Be8 {[%emt 0:00:15]} b4 {[%emt 0:00:42]} 53. Bd7+ {[%emt 0:00:36]} Ne6 {[%emt 0:00:31]} 54. Kg3 {[%emt 0:00:41]} Kf6 {[%emt 0:00:30]} 55. Kh4 {[%emt 0:01:37]} Nc5 {[%emt 0:00:11]} 0-1

[Event "Polish Youth G16 Championship 2023"]
[Site "Jastrzebia Gora"]
[Date "2023.03.13"]
[Round "2.9"]
[White "Szopa, Emilia"]
[Black "Bandyk, Joanna"]
[Result "1/2-1/2"]
[ECO "B93"]
[WhiteElo "1709"]
[BlackElo "1459"]
[Annotator "NA RC COMBH"]
[PlyCount "111"]
[EventDate "2023.03.11"]
[EventType "swiss"]
[EventCountry "POL"]
[SourceTitle "playchess.com"]
[Source "ChessBase"]
[SourceQuality "1"]
[TimeControl "40/5400+30:1800+30"]

1. e4 {[%emt 0:00:07]} c5 {[%emt 0:00:07]} 2. Nf3 {[%emt 0:00:13]} d6 {[%emt 0:00:08]} 3. d4 {[%emt 0:00:31]} cxd4 {[%emt 0:00:19]} 4. Nxd4 {[%emt 0:00:32]} Nf6 {[%emt 0:00:06]} 5. Nc3 {[%emt 0:00:17]} a6 {[%emt 0:00:06]} 6. f4 {[%emt 0:01:19]} e5 {[%emt 0:00:30]} 7. Nb3 {[%emt 0:01:25]} Nbd7 {[%emt 0:03:18]} 8. g4 {[%emt 0:05:22]} h6 {[%emt 0:03:21]} 9. f5 {[%emt 0:06:35]} b5 {[%emt 0:02:33]} 10. h4 {[%emt 0:07:27]} Bb7 {[%emt 0:04:00]} 11. Bg2 {[%emt 0:01:25]} Nc5 {[%emt 0:10:08]} 12. Qe2 {[%emt 0:04:10]} Qc7 {[%emt 0:07:52]} 13. Nxc5 {[%emt 0:04:59]} Qxc5 {[%emt 0:01:35]} 14. Be3 {[%emt 0:04:19]} Qc4 {[%emt 0:05:51]} 15. Qxc4 {[%emt 0:07:39]} bxc4 {[%emt 0:00:05]} 16. Bf3 {[%emt 0:02:04]} Be7 {[%emt 0:05:49]} 17. O-O-O {[%emt 0:03:38]} Nd7 {[%emt 0:05:47]} 18. g5 {[%emt 0:03:54]} hxg5 {[%emt 0:01:15]} 19. hxg5 {[%emt 0:00:20]} O-O-O {[%emt 0:01:52]} 20. Be2 {[%emt 0:03:09]} Nc5 {[%emt 0:05:49]} 21. Nd5 {[%emt 0:13:39]} Bxd5 {[%emt 0:02:01]} 22. exd5 {[%emt 0:00:44]} Ne4 {[%emt 0:00:39]} 23. Bxc4 {[%emt 0:09:49]} Kb7 {[%emt 0:00:54]} 24. Rhg1 {[%emt 0:01:07]} Rc8 {[%emt 0:06:57]} 25. Bd3 {[%emt 0:03:53]} Rh3 {[%emt 0:05:00]} 26. Rde1 {[%emt 0:05:39]} Rxe3 {[%emt 0:04:08]} 27. Rxe3 {[%emt 0:00:15]} Bxg5 {[%emt 0:00:09]} 28. Rxg5 {[%emt 0:00:40]} Nxg5 {[%emt 0:00:07]} 29. Rg3 {[%emt 0:00:28]} f6 {[%emt 0:01:03]} 30. Rg4 {[%emt 0:00:15]} a5 {[%emt 0:03:41]} 31. Kd2 {[%emt 0:04:31]} Rc5 {[%emt 0:01:29]} 32. Bc4 {[%emt 0:04:28]} Kb6 {[%emt 0:02:20]} 33. a3 {[%emt 0:00:24]} Nh3 {[%emt 0:04:08]} 34. b4 {[%emt 0:00:45]} axb4 {[%emt 0:00:28]} 35. axb4 {[%emt 0:00:05]} Rc7 {[%emt 0:00:24]} 36. Bf1 {[%emt 0:00:17]} Ng5 {[%emt 0:00:56]} 37. c4 {[%emt 0:01:14]} Nf3+ {[%emt 0:01:34]} 38. Kd3 {[%emt 0:00:42]} Ng5 {[%emt 0:01:13]} 39. Be2 {[%emt 0:00:36]} Ra7 {[%emt 0:00:25]} 40. Bd1 {[%emt 0:00:00]} Ra2 {[%emt 0:00:00]} 41. Rh4 {[%emt 0:05:29]} Ra8 {[%emt 0:02:37]} 42. Kc3 {[%emt 0:03:25]} Ra3+ {[%emt 0:01:48]} 43. Bb3 {[%emt 0:03:07]} Ra8 {[%emt 0:00:26]} 44. Rh2 {[%emt 0:01:55]} Ne4+ {[%emt 0:09:05]} 45. Kb2 {[%emt 0:02:05]} Ng5 {[%emt 0:00:30]} 46. Rc2 {[%emt 0:00:50]} Ne4 {[%emt 0:01:11]} 47. Rc1 {[%emt 0:01:12]} Rc8 {[%emt 0:01:03]} 48. Ba4 {[%emt 0:03:34]} Rc7 {[%emt 0:03:02]} 49. Bc6 {[%emt 0:02:22]} Ra7 {[%emt 0:00:28]} 50. Rh1 {[%emt 0:00:47]} Ng3 {[%emt 0:01:21]} 51. Rh8 {[%emt 0:00:38]} Nxf5 {[%emt 0:00:44]} 52. Rb8+ {[%emt 0:00:38]} Kc7 {[%emt 0:00:11]} 53. Rf8 {[%emt 0:00:28]} Kb6 {[%emt 0:00:21]} 54. Rb8+ {[%emt 0:01:07]} Kc7 {[%emt 0:00:04]} 55. Rf8 {[%emt 0:00:41]} Kb6 {[%emt 0:00:05]} 56. Rb8+ {[%emt 0:00:40]} 1/2-1/2

[Event "Polish Youth G16 Championship 2023"]
[Site "Jastrzebia Gora"]
[Date "2023.03.13"]
[Round "2.10"]
[White "Pastuszko, Katarzyna"]
[Black "Salamon, Julia"]
[Result "0-1"]
[ECO "B40"]
[WhiteElo "1286"]
[BlackElo "1701"]
[Annotator "NA RC COMBH"]
[PlyCount "108"]
[EventDate "2023.03.11"]
[EventType "swiss"]
[EventCountry "POL"]
[SourceTitle "playchess.com"]
[Source "ChessBase"]
[SourceQuality "1"]
[TimeControl "40/5400+30:1800+30"]

1. e4 {[%emt 0:00:04]} c5 {[%emt 0:00:03]} 2. Nf3 {[%emt 0:00:07]} e6 {[%emt 0:00:07]} 3. d4 {[%emt 0:00:13]} cxd4 {[%emt 0:00:09]} 4. Nxd4 {[%emt 0:00:03]} Nf6 {[%emt 0:00:14]} 5. Nc3 {[%emt 0:00:12]} Nc6 {[%emt 0:00:04]} 6. Ndb5 {[%emt 0:00:18]} d6 {[%emt 0:00:52]} 7. Bg5 {[%emt 0:01:09]} a6 {[%emt 0:00:47]} 8. Nd4 {[%emt 0:01:51]} Be7 {[%emt 0:10:18]} 9. Be2 {[%emt 0:06:00]} h6 {[%emt 0:05:09]} 10. Bh4 {[%emt 0:02:49]} Qb6 {[%emt 0:02:37]} 11. Nb3 {[%emt 0:04:58]} Nxe4 {[%emt 0:21:15]} 12. Nxe4 {[%emt 0:05:46]} Bxh4 {[%emt 0:01:24]} 13. Nxd6+ {[%emt 0:03:43]} Ke7 {[%emt 0:00:29]} 14. O-O {[%emt 0:02:46]} Rd8 {[%emt 0:07:43]} 15. Nxc8+ {[%emt 0:01:40]} Raxc8 {[%emt 0:00:30]} 16. Bd3 {[%emt 0:01:29]} Bf6 {[%emt 0:07:25]} 17. Kh1 {[%emt 0:03:38]} Nb4 {[%emt 0:03:41]} 18. Qe2 {[%emt 0:03:44]} Nxd3 {[%emt 0:05:43]} 19. cxd3 {[%emt 0:00:38]} Qb5 {[%emt 0:00:15]} 20. Rad1 {[%emt 0:03:02]} a5 {[%emt 0:02:18]} 21. f4 {[%emt 0:01:53]} a4 22. Nd2 Qxd3 {[%emt 0:03:07]} 23. Qg4 {[%emt 0:01:17]} Qc2 {[%emt 0:03:05]} 24. Qe2 {[%emt 0:04:18]} Qxb2 {[%emt 0:01:41]} 25. f5 {[%emt 0:05:01]} Rd6 {[%emt 0:10:47]} 26. fxe6 {[%emt 0:02:08]} fxe6 {[%emt 0:00:25]} 27. Rf2 {[%emt 0:04:12]} Rc1 {[%emt 0:03:49]} 28. Rxc1 {[%emt 0:02:12]} Qxc1+ {[%emt 0:00:05]} 29. Nf1 {[%emt 0:00:11]} Qc5 {[%emt 0:02:15]} 30. Ng3 {[%emt 0:01:58]} Qe5 {[%emt 0:00:50]} 31. Qc2 {[%emt 0:02:07]} Qd4 {[%emt 0:00:59]} 32. Rf1 {[%emt 0:01:39]} Rc6 {[%emt 0:00:39]} 33. Qb1 {[%emt 0:00:36]} Qb2 {[%emt 0:01:57]} 34. Ne4 {[%emt 0:04:55]} Qxb1 {[%emt 0:00:31]} 35. Rxb1 {[%emt 0:00:11]} Bb2 {[%emt 0:01:10]} 36. h3 {[%emt 0:02:26]} a3 {[%emt 0:00:02]} 37. Kh2 {[%emt 0:01:41]} Rc1 {[%emt 0:00:32]} 38. Rxc1 {[%emt 0:00:13]} Bxc1 {[%emt 0:00:03]} 39. Nc5 {[%emt 0:00:37]} b5 {[%emt 0:00:07]} 40. Kg3 {[%emt 0:00:00]} Kd6 {[%emt 0:00:00]} 41. Nb3 {[%emt 0:00:52]} Bb2 {[%emt 0:00:21]} 42. Kf3 {[%emt 0:00:43]} Kd5 {[%emt 0:00:02]} 43. Ke3 {[%emt 0:02:57]} Kc4 {[%emt 0:00:34]} 44. Kd2 {[%emt 0:00:16]} b4 {[%emt 0:00:31]} 45. Na5+ {[%emt 0:00:16]} Kd5 {[%emt 0:01:32]} 46. Ke3 {[%emt 0:01:17]} e5 {[%emt 0:00:15]} 47. Kd3 {[%emt 0:00:11]} e4+ {[%emt 0:00:03]} 48. Ke3 {[%emt 0:00:15]} Bf6 {[%emt 0:01:19]} 49. g4 {[%emt 0:02:36]} Bd4+ {[%emt 0:01:59]} 50. Kd2 {[%emt 0:00:27]} Bb6 {[%emt 0:03:59]} 51. Nb3 {[%emt 0:00:16]} Ke5 {[%emt 0:01:42]} 52. Ke2 {[%emt 0:01:42]} Kf4 {[%emt 0:00:17]} 53. Nd2 {[%emt 0:00:39]} e3 {[%emt 0:03:16]} 54. Nf1 {[%emt 0:01:27]} b3 {[%emt 0:00:20]} 0-1

[Event "Polish Youth G16 Championship 2023"]
[Site "Jastrzebia Gora"]
[Date "2023.03.13"]
[Round "2.11"]
[White "Zapalowska, Wiktoria"]
[Black "Dura, Anna"]
[Result "1-0"]
[ECO "C07"]
[WhiteElo "1639"]
[BlackElo "1186"]
[Annotator "NA RC COMBH"]
[PlyCount "59"]
[EventDate "2023.03.11"]
[EventType "swiss"]
[EventCountry "POL"]
[SourceTitle "playchess.com"]
[Source "ChessBase"]
[SourceQuality "1"]
[TimeControl "40/5400+30:1800+30"]

1. e4 {[%emt 0:00:05]} e6 {[%emt 0:00:03]} 2. d4 {[%emt 0:00:31]} d5 3. Nd2 {[%emt 0:00:33]} c5 {[%emt 0:00:45]} 4. Ngf3 {[%emt 0:01:30]} Nc6 {[%emt 0:01:02]} 5. exd5 {[%emt 0:01:44]} Qxd5 {[%emt 0:00:11]} 6. Bc4 {[%emt 0:01:00]} Qd8 {[%emt 0:00:16]} 7. dxc5 {[%emt 0:00:38]} Bxc5 {[%emt 0:01:00]} 8. a3 {[%emt 0:00:53]} Nf6 {[%emt 0:02:02]} 9. O-O {[%emt 0:00:50]} O-O {[%emt 0:01:56]} 10. b4 {[%emt 0:01:50]} Be7 {[%emt 0:02:28]} 11. Bb2 {[%emt 0:00:36]} a6 {[%emt 0:02:00]} 12. Bd3 {[%emt 0:05:37]} b5 {[%emt 0:03:15]} 13. Qe2 {[%emt 0:03:44]} Bb7 {[%emt 0:05:13]} 14. c4 {[%emt 0:01:47]} bxc4 {[%emt 0:03:20]} 15. Nxc4 {[%emt 0:00:47]} Qc7 {[%emt 0:06:45]} 16. Rac1 {[%emt 0:02:54]} Qf4 {[%emt 0:06:03]} 17. Nb6 {[%emt 0:07:02]} Ra7 {[%emt 0:02:20]} 18. Rc4 {[%emt 0:00:50]} Qd6 {[%emt 0:07:04]} 19. Rd1 {[%emt 0:05:25]} Nd5 {[%emt 0:04:07]} 20. Rg4 {[%emt 0:07:51]} g6 {[%emt 0:05:40]} 21. Nc4 {[%emt 0:00:45]} Qd8 {[%emt 0:02:30]} 22. Nfe5 {[%emt 0:06:07]} Bf6 {[%emt 0:04:31]} 23. Rg3 {[%emt 0:10:39]} Nf4 {[%emt 0:06:30]} 24. Qe3 {[%emt 0:01:28]} Nd5 {[%emt 0:05:56]} 25. Qc1 {[%emt 0:05:55]} Nce7 {[%emt 0:04:58]} 26. Rh3 {[%emt 0:02:49]} Bg7 {[%emt 0:02:38]} 27. Ng4 {[%emt 0:02:28]} h5 {[%emt 0:06:13]} 28. Bxg7 {[%emt 0:00:11]} Kxg7 {[%emt 0:00:14]} 29. Qh6+ {[%emt 0:00:07]} Kg8 {[%emt 0:00:14]} 30. Rxh5 {[%emt 0:00:46]} 1-0